bitfinex-derivatives/quotes_ETHF0:USTF0_20251001
["timestamp","ask_amount","ask_price","bid_price","bid_amount"]
[1759357749529,1.69124998,4316.8,4316.7,0.65343684]
[1759357750429,2.10802998,4316.8,4316.7,0.65343684]
[1759357750629,1.69124998,4316.8,4316.7,0.65343684]
[1759357750929,2.10802998,4316.8,4316.7,0.65343684]
[1759357753729,1.69124998,4316.8,4316.7,0.93453684]
[1759357755125,2.10802998,4316.8,4316.7,0.93453684]
[1759357756224,1.69124998,4316.8,4316.7,0.93453684]
[1759357757032,0.438,4316.8,4316.7,1.62753684]
[1759357757332,3.9053,4317.0,4316.9,1.39087]
[1759357757833,3.2078,4317.0,4316.9,1.39087]
[1759357758530,3.6331,4317.0,4316.9,1.39087]
[1759357760329,3.2078,4317.0,4316.9,6.39087]
[1759357762223,0.4417,4317.4,4317.3,0.41673]
[1759357762430,0.7191,4317.4,4317.3,1.59393]
[1759357765737,0.9987,4317.4,4317.3,1.19003]
[1759357766038,0.9987,4317.4,4317.3,0.65073]
[1759357766431,0.9987,4317.4,4317.3,0.92743]
[1759357770334,0.9987,4317.4,4317.3,1.32823]
[1759357771531,0.9987,4317.4,4317.3,1.61283]
[1759357788356,1.65354998,4317.4,4317.3,1.61283]
[1759357793367,1.65354998,4317.4,4317.3,1.21203]
[1759357793867,1.65354998,4317.4,4317.3,0.92743]
[1759357797664,1.65354998,4317.4,4317.3,1.59223]
[1759357799560,0.7191,4317.4,4317.3,1.59223]
[1759357802056,0.9812,4317.4,4317.3,1.59223]
[1759357804071,1.39792,4317.4,4317.2,0.41674]
[1759357804274,0.5353,4317.1,4317.0,0.41675]
[1759357804459,0.9453,4317.1,4317.0,0.65075]
[1759357804663,0.9453,4317.1,4317.0,0.93235]
[1759357812775,0.9453,4317.1,4317.0,0.41675]
[1759357813084,0.9453,4316.8,4316.7,0.00264684]
[1759357813375,4.92338941,4316.8,4316.7,0.23664684]
[1759357814070,4.1531,4316.8,4316.7,1.18304684]
[1759357815975,3.891,4316.8,4316.7,1.18304684]
[1759357818177,0.6832,4316.8,4316.7,1.18304684]
[1759357827882,0.952,4316.8,4316.7,1.18304684]
[1759357828183,0.952,4316.8,4316.7,0.89774684]
[1759357828384,0.952,4316.8,4316.7,1.17974684]
[1759357830877,0.952,4316.8,4316.7,0.23664684]
[1759357831581,0.952,4316.8,4316.7,0.00264684]
[1759357831775,1.36878,4316.8,4316.7,0.00264684]
[1759357831981,1.36878,4316.8,4316.7,0.23664684]
[1759357832379,0.952,4316.8,4316.7,0.23664684]
[1759357836586,1.36878,4316.8,4316.7,0.23664684]
[1759357840389,1.36878,4316.8,4316.7,0.00264684]
[1759357840590,1.36878,4316.8,4316.7,0.23664684]
[1759357842690,4.57658,4316.8,4316.7,0.23664684]
[1759357842893,0.2628,4316.1,4316.0,1.65849877]
[1759357843091,0.5316,4315.9,4315.5,40.99829877]
[1759357843284,0.9279,4315.6,4315.5,40.99829877]
[1759357843484,1.69818941,4315.6,4315.5,38.02449877]
[1759357843684,1.69818941,4315.6,4315.5,1.65849877]
[1759357843885,1.69818941,4315.6,4315.5,0.23617943]
[1759357845383,1.69818941,4315.6,4315.5,0.00217943]
[1759357845589,2.11507941,4315.6,4315.5,0.23617943]
[1759357846990,1.69818941,4315.6,4315.5,0.23617943]
[1759357847591,0.9279,4315.6,4315.5,1.17927943]
[1759357847987,1.34479,4315.6,4315.5,0.00217943]
[1759357848188,2.11507941,4315.6,4315.5,0.00217943]
[1759357848395,0.6591,4314.7,4314.6,0.9431]
[1759357848697,0.6591,4314.7,4314.6,1.36357406]
[1759357849405,0.66096738,4314.7,4314.6,1.17886224]
[1759357849896,0.92976738,4314.7,4314.6,1.17886224]
[1759357853995,0.92976738,4314.7,4314.6,0.78606224]
[1759357854191,1.70005679,4314.7,4314.6,0.78606224]
[1759357854397,1.70005679,4314.7,4314.6,0.23576224]
[1759357855193,1.70005679,4314.7,4314.6,0.00176224]
[1759357855396,2.11703679,4314.7,4314.6,0.23576224]
[1759357856104,1.70005679,4314.7,4314.6,0.23576224]
[1759357856300,2.11703679,4314.7,4314.6,0.23576224]
[1759357858702,1.70005679,4314.7,4314.6,0.23576224]
[1759357859606,0.92976738,4314.7,4314.6,0.89206224]
[1759357859803,0.66096738,4314.7,4314.6,1.14686224]
[1759357860007,0.00186738,4314.7,4314.6,1.14686224]
[1759357862203,0.00186738,4314.7,4314.6,1.80202903]
[1759357869619,0.66376738,4314.7,4314.6,37.94902903]
[1759357870019,0.66376738,4314.7,4314.6,37.29386224]
[1759357870218,0.00186738,4314.7,4314.6,37.29386224]
[1759357871718,0.00186738,4314.7,4314.6,37.94902903]
[1759357872227,0.00186738,4314.7,4314.6,39.6075278]
[1759357874327,0.00186738,4314.7,4314.6,37.94902903]
[1759357876632,0.92876738,4314.7,4314.6,2.80675341]
[1759357878133,0.92876738,4314.7,4314.6,1.14686224]
[1759357884340,0.92876738,4314.7,4314.6,0.76056224]
[1759357885633,0.92876738,4314.7,4314.6,1.16066224]
[1759357885934,0.92876738,4314.7,4314.6,0.92666224]
[1759357886142,0.92876738,4314.7,4314.6,1.16066224]
[1759357887936,0.92876738,4314.7,4314.6,0.50576224]
[1759357888843,0.92876738,4314.7,4314.6,0.27176224]
[1759357889143,0.92876738,4314.7,4314.6,0.50576224]
[1759357889843,0.92876738,4314.7,4314.6,0.23576224]
[1759357892939,0.92876738,4314.7,4314.6,0.88456224]
[1759357893139,0.92876738,4314.7,4314.6,1.15246224]
[1759357894040,0.92876738,4314.7,4314.6,0.91846224]
[1759357894241,0.92876738,4314.7,4314.6,1.15246224]
[1759357894946,0.66376738,4314.7,4314.6,1.15246224]
[1759357895347,0.92606738,4314.7,4314.6,1.15246224]
[1759357896747,0.92606738,4314.7,4314.6,0.75236224]
[1759357898749,0.92606738,4314.7,4314.6,1.15246224]
[1759357904853,0.66376738,4314.7,4314.6,1.15246224]
[1759357907851,0.92606738,4314.7,4314.6,1.15246224]
[1759357910551,0.00186738,4314.7,4314.6,1.15246224]
[1759357910747,3.2078,4315.0,4314.6,5.75236224]
[1759357910949,3.2078,4315.0,4314.9,1.57186679]
[1759357911147,3.8468,4315.0,4314.9,1.80486679]
[1759357911554,3.8468,4315.0,4314.9,1.1497]
[1759357911754,3.84943453,4315.0,4314.9,1.1497]
[1759357912656,0.64163453,4315.0,4314.9,1.1497]
[1759357913654,0.38243453,4315.0,4314.9,1.1497]
[1759357913854,0.00263453,4315.0,4314.9,1.1497]
[1759357915360,0.38893453,4315.0,4314.9,1.1497]
[1759357916152,0.00263453,4315.0,4314.9,1.1497]
[1759357918861,0.00263453,4315.0,4314.9,4.3575]
[1759357919461,1.19,4315.9,4315.6,0.9159]
[1759357919462,0.6557,4315.7,4315.6,0.9159]
[1759357919663,0.9079,4315.7,4315.6,1.1489]
[1759357920355,0.91057957,4315.7,4315.6,1.1489]
[1759357929471,0.00267957,4315.7,4315.6,1.56579]
[1759357929672,0.00267957,4315.7,4315.6,4.77359]
[1759357931782,0.38897957,4315.7,4315.6,4.77359]
[1759357932484,0.00267957,4315.7,4315.6,4.77359]
[1759357933481,0.00267957,4315.7,4315.6,40.91559]
[1759357934476,0.38897957,4315.7,4315.6,40.91559]
[1759357934783,0.00267957,4315.7,4315.6,40.91559]
[1759357936176,0.3863,4316.2,4315.6,40.1012]
[1759357936382,0.3863,4316.2,4316.1,0.9159]
[1759357936582,0.3863,4316.2,4316.1,1.1489]
[1759357936785,0.6557,4316.2,4316.1,1.1489]
[1759357937280,0.65759756,4316.2,4316.1,1.1489]
[1759357939686,0.65759756,4316.2,4316.1,1.32923083]
[1759357939878,0.65759756,4316.2,4316.1,1.1489]
[1759357940883,0.90979756,4316.2,4316.1,1.1489]
[1759357941386,0.00189756,4316.2,4316.1,1.1489]
[1759357942586,0.00189756,4316.2,4316.1,2.80879117]
[1759357944989,0.00189756,4316.2,4316.1,3.22563117]
[1759357945385,0.00189756,4316.2,4316.1,6.43343117]
[1759357952294,0.00189756,4316.2,4316.1,6.43447248]
[1759357952497,0.00189756,4316.2,4316.1,47.23447248]
[1759357953894,0.3739,4316.7,4316.1,46.34439814]
[1759357954190,3.20590244,4317.0,4316.9,1.33627]
[1759357954396,3.20590244,4317.0,4316.9,1.56927]
[1759357954794,3.57980244,4317.0,4316.9,1.56927]
[1759357954991,3.58259625,4317.0,4316.9,1.56927]
[1759357955898,3.84149625,4317.0,4316.9,1.56927]
[1759357956198,4.24999625,4317.0,4316.9,1.56927]
[1759357956396,4.09679625,4317.0,4316.9,1.56927]
[1759357960600,4.24999625,4317.0,4316.9,1.56927]
[1759357960901,1.04409381,4317.0,4316.9,1.56927]
[1759357967607,1.04409381,4317.0,4316.9,0.41677]
[1759357967906,6.44105195,4317.0,4316.7,0.41678]
[1759357968100,0.8881,4316.9,4316.7,0.41678]
[1759357968299,0.8881,4316.9,4316.8,0.233]
[1759357968599,0.8881,4316.9,4316.8,0.64978]
[1759357975312,0.8881,4316.9,4316.8,0.41678]
[1759357975505,0.8881,4316.9,4316.8,0.64978]
[1759357982412,0.8881,4316.9,4316.8,0.90458]
[1759357982815,0.8881,4316.9,4316.8,0.64978]
[1759357984216,1.5428625,4316.9,4316.8,0.64978]
[1759357986915,1.5428625,4316.9,4316.8,0.90458]
[1759357988412,1.5428625,4316.9,4316.8,0.64978]
[1759357989214,0.4875,4316.6,4316.3,1.66103239]
[1759357989424,1.5039625,4316.4,4316.3,0.41682]
[1759357989614,1.5039625,4316.4,4316.3,0.64982]
[1759357990517,5.1285725,4316.4,4316.3,0.233]
[1759357991518,4.7117625,4316.4,4316.3,0.233]
[1759357991715,5.004825,4316.4,4315.7,2.02583239]
[1759357992023,1.0006,4315.5,4315.4,5.48843239]
[1759357992224,1.6553625,4315.5,4315.4,4.0604]
[1759357992524,1.6553625,4315.5,4315.4,4.3054]
[1759357992819,1.6553625,4315.5,4315.4,5.96643239]
[1759357993019,0.3617,4315.5,4315.4,5.96643239]
[1759357993215,0.3617,4315.5,4315.4,4.3054]
[1759357993422,0.3617,4315.5,4315.4,1.0976]
[1759357994422,0.6029,4315.5,4315.4,1.0976]
[1759357997117,3.2078,4316.4,4315.4,1.0976]
[1759357997118,3.2078,4316.4,4315.8,0.4998]
[1759357997326,0.6029,4316.3,4316.2,0.8646]
[1759357997526,0.6029,4316.3,4316.2,1.0976]
[1759358006730,0.8349,4316.3,4316.2,1.0976]
[1759358006933,1.25172,4316.3,4316.2,0.233]
[1759358007132,0.8349,4316.3,4316.2,0.233]
[1759358007621,0.8349,4316.3,4315.5,3.2078]
[1759358007829,1.5104625,4315.6,4315.5,0.8547]
[1759358008124,1.5104625,4315.6,4315.5,1.0877]
[1759358008928,1.5104625,4315.6,4315.5,0.4681]
[1759358009230,1.5104625,4315.6,4315.5,1.0877]
[1759358013332,0.3694,4315.6,4315.5,1.0877]
[1759358014832,0.6237,4315.6,4315.5,1.0877]
[1759358016135,0.6237,4315.6,4315.5,2.74873239]
[1759358018231,0.6237,4315.6,4315.5,1.0877]
[1759358019832,0.8557,4315.6,4315.5,1.0877]
[1759358020029,0.8557,4315.6,4315.5,0.706]
[1759358023140,0.8557,4315.6,4315.5,1.0877]
[1759358025039,0.8557,4315.6,4315.5,0.4681]
[1759358025735,0.8557,4315.6,4315.5,0.8498]
[1759358026842,0.8557,4315.6,4315.5,1.0877]
[1759358034639,0.8557,4315.6,4315.5,0.233]
[1759358035345,0.8557,4315.6,4315.5,0.4723]
[1759358036544,0.3694,4315.6,4315.5,1.0678]
[1759358037346,0.6205,4315.6,4315.5,1.0678]
[1759358042355,0.8621,4315.6,4315.5,1.0678]
[1759358042555,0.8621,4315.6,4315.5,0.4723]
[1759358042855,0.8621,4315.6,4315.5,0.233]
[1759358043057,0.4927,4315.3,4315.2,2.9039638]
[1759358043255,0.8488,4315.3,4315.2,3.1369638]
[1759358049466,0.6072,4315.3,4315.2,3.1369638]
[1759358049662,0.3561,4315.8,4315.2,2.7798638]
[1759358049862,0.6072,4315.8,4315.7,2.49792592]
[1759358050258,0.3561,4315.8,4315.7,2.73092592]
[1759358050469,3.2078,4315.9,4315.8,0.8348]
[1759358050757,3.5639,4315.9,4315.8,2.49792592]
[1759358051354,3.5639,4315.9,4315.8,0.8348]
[1759358051559,0.3561,4315.9,4315.8,2.49792592]
[1759358052165,0.3561,4315.9,4315.8,0.8348]
[1759358053161,3.815,4316.4,4316.3,0.4777]
[1759358053363,3.815,4316.4,4316.3,1.0678]
[1759358056067,0.6072,4316.4,4316.3,1.0678]
[1759358061561,0.8495,4316.4,4316.3,1.0678]
[1759358062372,0.8495,4316.4,4316.3,1.48462]
[1759358063663,0.8495,4316.4,4316.3,1.12752]
[1759358063866,0.8495,4316.4,4316.3,0.233]
[1759358064063,0.142,4316.0,4315.9,0.41686]
[1759358064265,1.74519093,4316.0,4315.9,0.64986]
[1759358066876,1.74519093,4316.0,4315.9,0.88066]
[1759358067078,1.74519093,4316.0,4315.9,1.23706]
[1759358067275,1.74519093,4316.0,4315.9,0.88066]
[1759358067976,0.9742,4316.0,4315.9,1.47996]
[1759358068176,0.9742,4316.0,4315.9,3.14308592]
[1759358068479,0.9742,4316.0,4315.9,1.47996]
[1759358068677,3.3498,4316.5,4315.9,1.89455093]
[1759358068678,0.3602,4316.4,4315.9,1.89455093]
[1759358068883,3.9447,4316.5,4316.4,0.8301]
[1759358069074,3.9447,4316.5,4316.4,1.0631]
[1759358069474,3.568,4316.5,4316.4,1.0631]
[1759358069674,0.3602,4316.5,4316.4,1.0631]
[1759358070184,0.5949,4316.5,4316.4,1.47991]
[1759358070977,0.3602,4316.5,4316.4,1.47991]
[1759358077185,0.5949,4316.5,4316.4,1.47991]
[1759358078179,0.472,4316.2,4316.0,37.79712592]
[1759358078378,0.8322,4316.1,4316.0,1.89392592]
[1759358078580,0.9742,4316.0,4315.9,0.2308]
[1759358078785,0.9742,4316.0,4315.9,0.4638]
[1759358082492,0.9742,4316.0,4315.9,2.48332592]
[1759358083387,0.9742,4316.0,4315.9,2.12692592]
[1759358083789,3.2078,4316.4,4315.9,2.72622592]
[1759358083991,1.0417,4317.9,4316.8,0.8301]
[1759358083992,3.6798,4316.9,4316.8,0.8301]
[1759358084194,3.6798,4316.9,4316.8,1.0631]
[1759358084585,4.04,4316.9,4316.8,1.0631]
[1759358084892,4.04,4316.9,4316.8,0.7067]
[1759358086192,4.04,4316.9,4316.8,0.233]
[1759358086493,4.04,4316.9,4316.8,0.64978]
[1759358086992,4.04,4316.9,4316.8,0.88058]
[1759358089595,4.04,4316.9,4316.8,1.23698]
[1759358090593,0.8322,4316.9,4316.8,1.23698]
[1759358091498,0.8322,4316.9,4316.8,1.47988]
[1759358095597,0.00279381,4317.0,4316.9,1.24517]
[1759358095995,0.81499381,4317.0,4316.9,1.24517]
[1759358096502,0.58329381,4317.0,4316.9,1.24517]
[1759358098501,0.58329381,4317.0,4316.9,42.04517]
[1759358099494,0.58329381,4317.0,4316.9,1.24517]
[1759358104200,0.00279381,4317.0,4316.9,1.24517]
[1759358105202,0.35189381,4317.0,4316.9,1.24517]
[1759358106302,0.35189381,4317.0,4316.9,1.89963701]
[1759358107409,0.58329381,4317.0,4316.9,1.89963701]
[1759358107609,0.35189381,4317.0,4316.9,1.89963701]
[1759358108508,0.58329381,4317.0,4316.9,1.89963701]
[1759358112710,0.95169381,4317.0,4316.9,1.24517]
[1759358113408,0.58359381,4317.0,4316.9,1.24517]
[1759358113609,0.35189381,4317.0,4316.9,1.24517]
[1759358113912,0.58329381,4317.0,4316.9,1.24517]
[1759358118007,0.95169381,4317.0,4316.9,1.24517]
[1759358118410,0.81499381,4317.0,4316.9,1.24517]
[1759358129914,0.5857,4316.9,4316.8,0.41677]
[1759358130115,0.8183,4316.9,4316.8,0.64977]
[1759358132323,0.8183,4316.9,4316.8,0.41677]
[1759358132524,0.8183,4316.9,4316.8,0.64977]
[1759358144548,0.9556,4316.5,4316.4,0.2193]
[1759358144743,1.61006701,4316.5,4316.4,0.4523]
[1759358144943,1.61006701,4316.5,4316.4,0.233]
[1759358146250,1.61006701,4316.5,4316.4,0.4523]
[1759358146944,4.46236701,4316.5,4316.4,0.233]
[1759358147136,0.6001,4316.0,4315.9,0.2193]
[1759358147342,0.6001,4316.0,4315.9,0.4523]
[1759358147543,0.9556,4316.0,4315.9,0.4523]
[1759358150548,0.9556,4316.0,4315.9,0.233]
[1759358154056,0.9556,4316.0,4315.9,0.4523]
[1759358157065,0.9556,4316.0,4315.9,0.7857]
[1759358157556,0.9556,4316.0,4315.9,1.0051]
[1759358160663,0.9556,4316.0,4315.9,0.6717]
[1759358161159,0.9556,4316.0,4315.9,0.4387]
[1759358161357,0.9556,4316.0,4315.6,1.64753491]
[1759358161661,0.7858,4315.6,4315.5,2.20013491]
[1759358161861,0.7858,4315.6,4315.5,2.43313491]
[1759358162455,0.7858,4315.6,4315.5,2.65253491]
[1759358162857,0.2361,4315.4,4315.3,1.64753491]
[1759358163059,1.44026701,4315.2,4315.1,0.2192]
[1759358163255,1.44026701,4315.2,4315.1,0.4522]
[1759358163460,1.44026701,4315.2,4315.1,0.233]
[1759358165163,1.44026701,4315.2,4315.1,0.4522]
[1759358165963,0.562,4315.2,4315.1,1.005]
[1759358166160,0.562,4315.2,4315.1,1.65946701]
[1759358166466,0.3259,4315.4,4315.3,0.772]
[1759358166668,0.3259,4315.4,4315.3,1.005]
[1759358166965,0.562,4315.4,4315.3,1.005]
[1759358167859,0.7858,4315.4,4315.3,1.005]
[1759358168561,0.918,4315.0,4314.9,3.427]
[1759358168762,4.57088754,4315.0,4314.7,36.137]
[1759358168969,0.7858,4314.8,4314.7,36.137]
[1759358169167,0.7858,4314.8,4314.7,36.37]
[1759358171558,0.7858,4314.8,4314.6,0.00176224]
[1759358171763,0.7858,4314.8,4314.7,0.233]
[1759358171969,1.55678754,4314.8,4314.7,0.233]
[1759358173959,1.97375754,4314.8,4314.6,0.00176224]
[1759358174160,1.97375754,4314.8,4314.7,0.233]
[1759358174361,0.4599,4313.7,4313.5,1.64753491]
[1759358174565,0.7858,4313.4,4313.3,3.7604]
[1759358174864,0.7858,4313.4,4313.3,4.2128]
[1759358175065,0.7858,4313.4,4313.3,1.005]
[1759358175260,0.7858,4313.4,4313.3,0.772]
[1759358175463,0.78848011,4313.4,4313.3,1.00785308]
[1759358175865,0.78848011,4313.4,4313.3,0.45505308]
[1759358176066,0.78848011,4313.4,4313.3,0.00285308]
[1759358176266,0.78848011,4313.4,4313.3,0.23585308]
[1759358176572,0.78848011,4313.4,4313.0,0.01127781]
[1759358176573,1.20293,4313.1,4313.0,0.01127781]
[1759358176873,0.7858,4312.2,4312.1,36.144]
[1759358177070,1.55678754,4312.2,4312.1,36.2000334]
[1759358177572,6.55678754,4312.2,4312.1,36.20197296]
[1759358177870,0.3259,4311.4,4311.3,3.9798]
[1759358178071,0.3259,4312.2,4311.8,0.4386]
[1759358178273,0.1322,4312.0,4311.9,0.233]
[1759358178466,0.918,4312.0,4311.9,0.233]
[1759358178669,0.918,4312.0,4311.9,0.23553105]
[1759358178973,0.918,4312.0,4311.9,0.45473105]
[1759358179367,0.918,4312.0,4311.9,0.00253105]
[1759358179570,0.918,4312.0,4311.9,0.23553105]
[1759358179877,0.918,4312.0,4311.9,1.00753105]
[1759358180170,0.918,4312.0,4311.9,0.00253105]
[1759358180370,4.1258,4312.0,4311.9,0.23553105]
[1759358182365,9.1258,4312.0,4311.9,0.23553105]
[1759358182771,0.5282,4310.9,4310.8,3.9647]
[1759358182967,0.5282,4310.9,4310.8,4.1977]
[1759358183681,0.3174,4310.9,4310.8,4.20057495]
[1759358184481,0.5445,4310.9,4310.8,4.20057495]
[1759358184772,0.763,4310.9,4310.8,4.20057495]
[1759358184967,0.763,4310.9,4310.8,3.87807495]
[1759358185369,0.763,4310.9,4310.8,4.19967495]
[1759358185674,0.3174,4310.9,4310.8,4.19967495]
[1759358188281,0.5445,4310.9,4310.8,4.19967495]
[1759358188782,0.3174,4310.9,4310.8,4.19967495]
[1759358192079,0.5445,4310.9,4310.8,4.19967495]
[1759358198298,0.763,4310.9,4310.8,4.19967495]
[1759358202290,0.763,4310.9,4310.8,3.96667495]
[1759358202491,0.763,4310.9,4310.8,4.19967495]
[1759358202692,0.763,4310.9,4310.8,3.96667495]
[1759358202892,0.763,4310.9,4310.8,4.19967495]
[1759358203192,0.763,4310.9,4310.8,3.96667495]
[1759358203500,0.763,4310.9,4310.8,0.22077495]
[1759358203691,0.763,4310.9,4310.8,0.45377495]
[1759358204601,0.763,4310.9,4310.8,0.77537495]
[1759358204895,0.763,4310.9,4310.8,1.00527495]
[1759358205987,0.763,4310.9,4310.8,0.68367495]
[1759358206198,1.2791891,4310.9,4310.8,0.68367495]
[1759358207295,1.2791891,4310.9,4310.8,0.45067495]
[1759358207500,1.2791891,4310.9,4310.8,1.00527495]
[1759358211002,1.2791891,4310.9,4310.8,0.23587495]
[1759358211398,1.6965391,4310.9,4310.8,0.23587495]
[1759358211598,6.6965391,4310.9,4310.8,0.23587495]
[1759358212106,6.2791891,4310.9,4310.8,0.23587495]
[1759358212406,6.6965391,4310.9,4310.8,0.23587495]
[1759358213508,6.2791891,4310.9,4310.8,0.23587495]
[1759358213702,6.6965391,4310.9,4310.8,0.23587495]
[1759358215103,6.2791891,4310.9,4310.8,0.23587495]
[1759358218213,6.6965391,4310.9,4310.8,0.23587495]
[1759358219105,6.2791891,4310.9,4310.8,0.23587495]
[1759358219807,6.6965391,4310.9,4310.8,0.23587495]
[1759358224405,0.41736,4310.8,4310.5,0.233]
[1759358224610,0.7874,4310.6,4310.5,0.233]
[1759358225407,0.1386,4310.5,4310.0,0.3351]
[1759358225609,0.3442,4310.1,4310.0,0.7679]
[1759358225815,0.34596684,4310.1,4310.0,1.00285551]
[1759358226416,0.00176684,4310.1,4310.0,1.11125551]
[1759358226915,0.56836684,4310.1,4310.0,1.00285551]
[1759358228214,0.34596684,4310.1,4310.0,1.00285551]
[1759358228516,0.56836684,4310.1,4310.0,1.00285551]
[1759358231218,0.34596684,4310.1,4310.0,1.00285551]
[1759358231414,0.00176684,4310.1,4310.0,1.11125551]
[1759358232509,0.34596684,4310.1,4310.0,1.11125551]
[1759358234914,0.56836684,4310.1,4310.0,1.00285551]
[1759358235517,0.78916684,4310.1,4310.0,1.00285551]
[1759358238419,0.56836684,4310.1,4310.0,1.00285551]
[1759358238623,0.00176684,4310.1,4310.0,1.11125551]
[1759358238823,0.34596684,4310.1,4310.0,1.11125551]
[1759358239125,0.56836684,4310.1,4310.0,1.11125551]
[1759358239425,0.78916684,4310.1,4310.0,1.00285551]
[1759358240427,0.56836684,4310.1,4310.0,1.00285551]
[1759358241524,0.34596684,4310.1,4310.0,1.10445551]
[1759358241920,0.3157,4310.9,4310.1,0.3162]
[1759358242225,3.2078,4311.0,4310.9,0.7318]
[1759358242415,3.2078,4311.0,4310.9,0.9648]
[1759358242618,3.5235,4311.0,4310.9,0.9648]
[1759358242920,3.20992716,4311.0,4310.9,0.9648]
[1759358244033,0.00212716,4311.0,4310.9,0.9648]
[1759358251034,0.33362716,4311.0,4310.9,0.9648]
[1759358251931,0.00212716,4311.0,4310.9,0.9648]
[1759358257943,0.00212716,4311.0,4310.9,1.62143156]
[1759358261738,0.55332716,4311.0,4310.9,1.62143156]
[1759358262942,0.00212716,4311.0,4310.9,1.62143156]
[1759358263538,3.2078,4311.6,4311.5,0.5805]
[1759358263743,3.2078,4311.6,4311.5,1.80933156]
[1759358263942,0.3315,4311.8,4311.5,1.80933156]
[1759358264147,0.3315,4311.8,4311.7,0.7914]
[1759358264348,0.3315,4311.8,4311.7,1.0244]
[1759358264645,0.3344274,4311.8,4311.7,1.0244]
[1759358265846,0.0029274,4311.8,4311.7,1.0244]
[1759358268348,0.3344274,4311.8,4311.7,1.0244]
[1759358269950,0.0029274,4311.8,4311.7,1.0244]
[1759358272050,0.3344274,4311.8,4311.7,1.0244]
[1759358272449,0.0029274,4311.8,4311.7,1.0244]
[1759358272647,0.3315,4312.6,4312.5,0.4522]
[1759358272848,0.3315,4312.6,4312.5,1.0244]
[1759358273248,0.5512,4312.6,4312.5,1.0244]
[1759358273652,0.55414917,4312.6,4312.5,1.0244]
[1759358277354,0.77564917,4312.6,4312.5,1.0244]
[1759358279257,0.77564917,4312.6,4312.5,0.6852]
[1759358279754,0.77564917,4312.6,4312.5,1.0148]
[1759358282956,0.33444917,4312.6,4312.5,1.67143156]
[1759358283358,0.56144917,4312.6,4312.5,1.67143156]
[1759358283559,0.78294917,4312.6,4312.5,1.67143156]
[1759358288262,0.78294917,4312.6,4312.5,0.6852]
[1759358288764,0.78294917,4312.6,4312.5,1.0148]
[1759358291359,0.7892,4312.1,4311.8,1.64753491]
[1759358291565,0.4485,4311.9,4311.5,1.64753491]
[1759358291858,0.7892,4311.7,4311.6,0.2139]
[1759358292055,0.7892,4311.7,4311.6,0.4469]
[1759358292256,0.7892,4311.7,4311.6,2.09443491]
[1759358292459,0.7892,4311.7,4311.6,2.63263491]
[1759358292755,0.3407,4311.7,4311.6,2.63263491]
[1759358292955,0.3407,4312.3,4312.2,0.7521]
[1759358293152,0.5677,4312.3,4312.2,0.9851]
[1759358293354,0.7892,4312.3,4312.2,0.9851]
[1759358295663,0.7892,4312.3,4312.2,0.6555]
[1759358295862,0.7892,4312.3,4312.2,0.9851]
[1759358298666,0.7892,4312.3,4312.2,0.6555]
[1759358299762,0.7892,4312.3,4312.2,0.4469]
[1759358299962,3.997,4312.3,4312.2,0.233]
[1759358304065,3.997,4312.3,4311.8,1.65973782]
[1759358304268,3.997,4312.3,4311.9,0.233]
[1759358304463,0.8828,4312.0,4311.9,0.233]
[1759358306060,0.3172,4311.9,4311.7,1.65973782]
[1759358306366,0.3172,4311.9,4311.4,0.3143]
[1759358306367,0.4363,4311.4,4311.3,0.2131]
[1759358306561,0.7535,4311.4,4311.3,0.4461]
[1759358307358,0.7535,4311.4,4311.3,0.2131]
[1759358307558,0.7535,4311.4,4311.3,0.4461]
[1759358308564,0.3172,4311.3,4311.1,1.65973782]
[1759358308759,0.7535,4310.9,4310.8,0.2131]
[1759358308965,0.7535,4310.9,4310.8,0.4461]
[1759358309362,0.7535,4310.9,4310.8,0.2131]
[1759358309664,0.7535,4310.9,4310.8,0.4461]
[1759358310166,0.7535,4310.9,4310.8,0.987]
[1759358311871,0.7535,4310.9,4310.8,0.6727]
[1759358312268,0.7535,4310.9,4310.8,0.2131]
[1759358312470,0.7535,4310.9,4310.8,0.4461]
[1759358313864,0.7535,4310.9,4310.8,0.233]
[1759358314467,0.7535,4310.9,4310.8,0.4461]
[1759358314765,0.3172,4310.9,4310.8,0.987]
[1759358315867,3.2078,4311.3,4310.8,0.987]
[1759358316073,0.3172,4311.2,4311.1,0.4397]
[1759358316263,0.528,4311.2,4311.1,0.987]
[1759358316572,0.7535,4311.2,4311.1,0.987]
[1759358318476,0.3172,4311.2,4311.1,0.987]
[1759358321672,0.528,4311.2,4311.1,0.987]
[1759358328182,0.7535,4311.2,4311.1,0.987]
[1759358328377,0.7535,4311.2,4311.1,0.6727]
[1759358328676,0.528,4310.7,4310.6,36.176]
[1759358328880,0.528,4310.7,4310.6,36.409]
[1759358331486,0.7719185,4310.9,4310.2,3.2078]
[1759358331487,0.3172,4310.3,4310.2,3.2078]
[1759358331682,0.7535,4310.3,4310.2,3.6539]
[1759358331985,0.7535,4310.3,4310.2,3.9682]
[1759358332485,0.7535,4310.3,4310.2,4.1948]
[1759358333187,0.8828,4311.0,4310.9,0.5274]
[1759358333484,0.8828,4311.0,4310.9,0.4461]
[1759358334275,0.8828,4311.0,4310.9,0.4523]
[1759358334481,0.8828,4311.0,4310.9,0.233]
[1759358339496,1.30013,4311.0,4310.9,0.233]
[1759358339694,0.8828,4311.0,4310.9,0.233]
[1759358341593,1.30013,4311.0,4310.9,0.233]
[1759358342387,1.30013,4311.0,4310.4,0.2193]
[1759358342388,0.894,4310.5,4310.4,0.2193]
[1759358342593,0.7697,4310.2,4310.1,0.2193]
[1759358342788,1.5416185,4310.2,4310.1,0.2193]
[1759358342989,1.5416185,4310.2,4310.1,0.233]
[1759358344192,1.5416185,4310.2,4309.6,3.2078]
[1759358344193,0.3289,4309.7,4309.6,1.65973782]
[1759358344393,0.5493,4308.6,4308.5,0.5508]
[1759358344594,0.7697,4308.2,4308.1,0.7701]
[1759358344793,0.3289,4308.6,4308.5,0.2193]